[Event "MČR v rapid šachu družstev 2019"]
[Site "Teplice, Czech Republic"]
[Date "2019.09.15"]
[Round "3.1"]
[White "Krejci, Jan"]
[Black "Stocek, Jiri"]
[Result "1/2-1/2"]
[TimeControl "15 min. + 5s"]
[WhiteElo "2496"]
[BlackElo "2507"]

1. Nf3 {[%clk 00:15:08]} {[%emt 00:00:01]} Nf6 {[%clk 00:14:44]} {[%emt
00:00:26]} 2. c4 {[%clk 00:15:12]} {[%emt 00:00:02]} b6 {[%clk 00:14:44]}
{[%emt 00:00:05]} 3. Nc3 {[%clk 00:15:04]} {[%emt 00:00:12]} Bb7 {[%clk
00:14:46]} {[%emt 00:00:03]} 4. d4 {[%clk 00:14:47]} {[%emt 00:00:22]} e6
{[%clk 00:14:49]} {[%emt 00:00:02]} 5. g3 {[%clk 00:14:50]} {[%emt 00:00:03]}
Bb4 {[%clk 00:14:46]} {[%emt 00:00:07]} 6. Bg2 {[%clk 00:14:49]} {[%emt
00:00:06]} Bxc3+ {[%clk 00:14:15]} {[%emt 00:00:36]} 7. bxc3 {[%clk 00:14:53]}
{[%emt 00:00:02]} O-O {[%clk 00:14:15]} {[%emt 00:00:05]} 8. O-O {[%clk
00:14:53]} {[%emt 00:00:05]} Qc8 {[%clk 00:14:11]} {[%emt 00:00:10]} 9. Re1
{[%clk 00:14:05]} {[%emt 00:00:53]} d6 {[%clk 00:14:06]} {[%emt 00:00:09]} 10.
a4 {[%clk 00:13:45]} {[%emt 00:00:25]} a5 {[%clk 00:13:49]} {[%emt 00:00:21]}
11. Bh3 {[%clk 00:12:30]} {[%emt 00:01:21]} Nbd7 {[%clk 00:13:49]} {[%emt
00:00:05]} 12. Nd2 {[%clk 00:12:31]} {[%emt 00:00:04]} Ne4 {[%clk 00:13:47]}
{[%emt 00:00:07]} 13. f3 {[%clk 00:12:06]} {[%emt 00:00:30]} Nxd2 {[%clk
00:13:36]} {[%emt 00:00:15]} 14. Bxd2 {[%clk 00:11:56]} {[%emt 00:00:15]} f5
{[%clk 00:10:36]} {[%emt 00:03:05]} 15. e4 {[%clk 00:11:59]} {[%emt 00:00:02]}
Kh8 {[%clk 00:10:14]} {[%emt 00:00:26]} 16. Qe2 {[%clk 00:11:40]} {[%emt
00:00:25]} fxe4 {[%clk 00:09:49]} {[%emt 00:00:30]} 17. fxe4 {[%clk 00:11:41]}
{[%emt 00:00:04]} Qe8 {[%clk 00:09:44]} {[%emt 00:00:10]} 18. Qg4 {[%clk
00:11:27]} {[%emt 00:00:19]} Nf6 {[%clk 00:09:00]} {[%emt 00:00:48]} 19. Qh4
{[%clk 00:10:59]} {[%emt 00:00:33]} e5 {[%clk 00:07:42]} {[%emt 00:01:24]} 20.
Bg5 {[%clk 00:09:21]} {[%emt 00:01:43]} Bc8 {[%clk 00:07:23]} {[%emt 00:00:24]}
21. Bg2 {[%clk 00:08:50]} {[%emt 00:00:36]} Be6 {[%clk 00:06:58]} {[%emt
00:00:30]} 22. Rf1 {[%clk 00:08:07]} {[%emt 00:00:48]} Qg6 {[%clk 00:06:28]}
{[%emt 00:00:34]} 23. d5 {[%clk 00:07:53]} {[%emt 00:00:20]} Bd7 {[%clk
00:06:29]} {[%emt 00:00:03]} 24. Ra2 {[%clk 00:07:49]} {[%emt 00:00:11]} h6
{[%clk 00:06:27]} {[%emt 00:00:07]} 25. Bc1 {[%clk 00:07:18]} {[%emt 00:00:35]}
Qg4 {[%clk 00:05:59]} {[%emt 00:00:32]} 26. Qxg4 {[%clk 00:07:18]} {[%emt
00:00:06]} Nxg4 {[%clk 00:05:34]} {[%emt 00:00:30]} 27. h3 {[%clk 00:07:06]}
{[%emt 00:00:17]} Rxf1+ {[%clk 00:05:35]} {[%emt 00:00:04]} 28. Kxf1 {[%clk
00:06:46]} {[%emt 00:00:25]} Rf8+ {[%clk 00:05:36]} {[%emt 00:00:04]} 29. Ke1
{[%clk 00:06:50]} Nf6 {[%clk 00:05:36]} {[%emt 00:00:06]} 30. g4 {[%clk
00:06:54]} {[%emt 00:00:01]} Bc8 {[%clk 00:04:56]} {[%emt 00:00:46]} 31. Rf2
{[%clk 00:06:14]} {[%emt 00:00:45]} Kg8 {[%clk 00:04:08]} {[%emt 00:00:53]} 32.
g5 {[%clk 00:06:07]} {[%emt 00:00:11]} hxg5 {[%clk 00:04:10]} {[%emt 00:00:03]}
33. Bxg5 {[%clk 00:06:11]} {[%emt 00:00:01]} Ba6 {[%clk 00:03:56]} {[%emt
00:00:19]} 34. Bf1 {[%clk 00:05:03]} {[%emt 00:01:13]} Nxe4 {[%clk 00:03:05]}
{[%emt 00:00:57]} 35. Rxf8+ {[%clk 00:05:06]} {[%emt 00:00:01]} Kxf8 {[%clk
00:03:09]} {[%emt 00:00:01]} 36. Bd8 {[%clk 00:05:10]} Nxc3 {[%clk 00:03:02]}
{[%emt 00:00:11]} 37. Bxc7 {[%clk 00:05:03]} {[%emt 00:00:12]} Ke7 {[%clk
00:03:02]} {[%emt 00:00:05]} 38. c5 {[%clk 00:03:28]} {[%emt 00:01:41]} Bxf1
{[%clk 00:02:55]} {[%emt 00:00:12]} 39. Bxd6+ {[%clk 00:03:31]} {[%emt
00:00:01]} Kf6 {[%clk 00:02:00]} {[%emt 00:01:00]} 40. Kxf1 {[%clk 00:03:21]}
{[%emt 00:00:15]} bxc5 {[%clk 00:01:41]} {[%emt 00:00:25]} 41. Bxc5 {[%clk
00:02:42]} {[%emt 00:00:44]} Nxa4 {[%clk 00:01:40]} {[%emt 00:00:05]} 42. Bf2
{[%clk 00:01:43]} {[%emt 00:01:05]} Nb2 {[%clk 00:01:26]} {[%emt 00:00:18]} 43.
Ke2 {[%clk 00:01:47]} {[%emt 00:00:01]} a4 {[%clk 00:01:29]} {[%emt 00:00:02]}
44. Kd2 {[%clk 00:01:40]} {[%emt 00:00:12]} a3 {[%clk 00:01:18]} {[%emt
00:00:17]} 45. Kc2 {[%clk 00:01:08]} {[%emt 00:00:37]} Nc4 {[%clk 00:00:58]}
{[%emt 00:00:24]} 46. Kb3 {[%clk 00:01:01]} {[%emt 00:00:13]} Kf5 {[%clk
00:00:50]} {[%emt 00:00:12]} 47. Bc5 {[%clk 00:00:55]} {[%emt 00:00:11]} g6
{[%clk 00:00:38]} {[%emt 00:00:18]} 48. Bb4 {[%clk 00:00:32]} {[%emt 00:00:28]}
Nb6 {[%clk 00:00:37]} {[%emt 00:00:04]} 49. d6 {[%clk 00:00:35]} {[%emt
00:00:03]} Ke6 {[%clk 00:00:41]} {[%emt 00:00:01]} 50. Bxa3 {[%clk 00:00:36]}
{[%emt 00:00:04]} Nc8 {[%clk 00:00:43]} {[%emt 00:00:03]} 51. Kc4 {[%clk
00:00:40]} {[%emt 00:00:01]} Nxd6+ {[%clk 00:00:45]} {[%emt 00:00:03]} 52. Kd3
{[%clk 00:00:44]} Nf7 {[%clk 00:00:41]} {[%emt 00:00:09]} 53. Ke3 {[%clk
00:00:41]} {[%emt 00:00:08]} Kf5 {[%clk 00:00:44]} {[%emt 00:00:03]} 54. Be7
{[%clk 00:00:37]} {[%emt 00:00:08]} Ng5 {[%clk 00:00:43]} {[%emt 00:00:05]} 55.
h4 {[%clk 00:00:34]} {[%emt 00:00:09]} Ne6 {[%clk 00:00:44]} {[%emt 00:00:04]}
56. Kf3 {[%clk 00:00:34]} {[%emt 00:00:04]} Nf4 {[%clk 00:00:42]} {[%emt
00:00:07]} 57. Bg5 {[%clk 00:00:30]} {[%emt 00:00:09]} Nd5 {[%clk 00:00:44]}
{[%emt 00:00:04]} 58. Bd8 {[%clk 00:00:22]} {[%emt 00:00:13]} e4+ {[%clk
00:00:46]} {[%emt 00:00:03]} 59. Ke2 {[%clk 00:00:26]} {[%emt 00:00:01]} Ke5
{[%clk 00:00:34]} {[%emt 00:00:17]} 60. Bg5 {[%clk 00:00:23]} {[%emt 00:00:08]}
Kd4 {[%clk 00:00:36]} {[%emt 00:00:02]} 61. Bh6 {[%clk 00:00:14]} {[%emt
00:00:15]} e3 {[%clk 00:00:40]} {[%emt 00:00:02]} 62. Kf3 {[%clk 00:00:12]}
{[%emt 00:00:06]} Kd3 {[%clk 00:00:41]} {[%emt 00:00:04]} 63. Bxe3 {[%clk
00:00:11]} {[%emt 00:00:06]} Nxe3 {[%clk 00:00:45]} {[%emt 00:00:02]} 64. Kf4
{[%clk 00:00:15]} Ng2+ {[%clk 00:00:38]} {[%emt 00:00:11]} 65. Kg5 {[%clk
00:00:20]} Nxh4 {[%clk 00:00:42]} {[%emt 00:00:03]} 66. Kxh4 {[%clk 00:00:23]}
{[%emt 00:00:01]} Ke4 {[%clk 00:00:45]} {[%emt 00:00:02]} 67. Kg5 {[%clk
00:00:28]} Ke5 {[%emt 00:00:05]} 1/2-1/2

[Event "MČR v rapid šachu družstev 2019"]
[Site "Teplice, Czech Republic"]
[Date "2019.09.15"]
[Round "3.2"]
[White "Kociscak, Jiri"]
[Black "Sorm, Daniel"]
[Result "1-0"]
[TimeControl "15 min. + 5s"]
[WhiteElo "2410"]
[BlackElo "2313"]

1. d4 {[%clk 00:15:08]} {[%emt 00:00:01]} d5 {[%clk 00:15:09]} {[%emt
00:00:02]} 2. c4 {[%clk 00:15:10]} {[%emt 00:00:03]} e6 {[%clk 00:14:33]}
{[%emt 00:00:41]} 3. Nf3 {[%clk 00:15:10]} {[%emt 00:00:04]} c6 {[%clk
00:14:37]} {[%emt 00:00:01]} 4. Nc3 {[%clk 00:15:11]} {[%emt 00:00:05]} dxc4
{[%clk 00:14:40]} {[%emt 00:00:02]} 5. a4 {[%clk 00:15:11]} {[%emt 00:00:05]}
Bb4 {[%clk 00:14:44]} {[%emt 00:00:01]} 6. e3 {[%clk 00:14:32]} {[%emt
00:00:43]} b5 {[%clk 00:14:47]} {[%emt 00:00:03]} 7. Bd2 {[%clk 00:13:20]}
{[%emt 00:01:18]} Qb6 {[%clk 00:14:50]} {[%emt 00:00:02]} 8. Ne4 {[%clk
00:12:05]} {[%emt 00:01:19]} Be7 {[%clk 00:14:51]} {[%emt 00:00:05]} 9. b3
{[%clk 00:11:32]} {[%emt 00:00:38]} cxb3 {[%clk 00:14:19]} {[%emt 00:00:38]} 10.
Qxb3 {[%clk 00:11:35]} {[%emt 00:00:01]} bxa4 {[%clk 00:13:18]} {[%emt
00:01:06]} 11. Qxa4 {[%clk 00:11:31]} {[%emt 00:00:08]} Nf6 {[%clk 00:13:02]}
{[%emt 00:00:21]} 12. Nxf6+ {[%clk 00:11:28]} {[%emt 00:00:08]} gxf6 {[%clk
00:12:58]} {[%emt 00:00:09]} 13. Bd3 {[%clk 00:10:48]} {[%emt 00:00:45]} O-O
{[%clk 00:12:04]} {[%emt 00:00:59]} 14. O-O {[%clk 00:10:39]} {[%emt 00:00:14]}
Qc7 {[%clk 00:10:02]} {[%emt 00:02:07]} 15. Rfb1 {[%clk 00:08:39]} {[%emt
00:02:05]} Bd6 {[%clk 00:08:22]} {[%emt 00:01:45]} 16. Qc2 {[%clk 00:06:56]}
{[%emt 00:01:48]} Kh8 {[%clk 00:06:52]} {[%emt 00:01:35]} 17. Bc3 {[%clk
00:06:22]} {[%emt 00:00:39]} Qe7 {[%clk 00:06:36]} {[%emt 00:00:21]} 18. Nd2
{[%clk 00:06:09]} {[%emt 00:00:18]} Nd7 {[%clk 00:05:30]} {[%emt 00:01:11]} 19.
Ne4 {[%clk 00:06:03]} {[%emt 00:00:11]} Rg8 {[%clk 00:05:09]} {[%emt 00:00:26]}
20. f4 {[%clk 00:05:43]} {[%emt 00:00:25]} Rg7 {[%clk 00:02:36]} {[%emt
00:02:38]} 21. Be1 {[%clk 00:05:09]} {[%emt 00:00:40]} f5 {[%clk 00:01:44]}
{[%emt 00:00:57]} 22. Qxc6 {[%clk 00:03:16]} {[%emt 00:01:57]} fxe4 {[%clk
00:01:47]} {[%emt 00:00:02]} 23. Bxe4 {[%clk 00:03:10]} {[%emt 00:00:11]} Rb8
{[%clk 00:00:44]} {[%emt 00:01:08]} 24. Rxb8 {[%clk 00:03:11]} {[%emt
00:00:04]} Nxb8 {[%clk 00:00:33]} {[%emt 00:00:16]} 25. Qxc8+ {[%clk 00:03:12]}
{[%emt 00:00:04]} Rg8 {[%clk 00:00:35]} {[%emt 00:00:04]} 26. Qb7 {[%clk
00:03:13]} {[%emt 00:00:04]} a6 {[%clk 00:00:16]} {[%emt 00:00:24]} 27. Qxe7
{[%clk 00:02:59]} {[%emt 00:00:19]} Bxe7 {[%clk 00:00:20]} {[%emt 00:00:01]} 28.
Bb7 {[%clk 00:03:02]} Rd8 {[%clk 00:00:10]} {[%emt 00:00:15]} 29. Bxa6 {[%clk
00:03:04]} {[%emt 00:00:03]} Nxa6 {[%clk 00:00:08]} {[%emt 00:00:07]} 30. Rxa6
{[%clk 00:03:07]} {[%emt 00:00:01]} Rb8 {[%clk 00:00:11]} {[%emt 00:00:03]} 31.
Ra7 {[%clk 00:02:57]} {[%emt 00:00:15]} Re8 {[%clk 00:00:08]} {[%emt 00:00:08]}
32. Kf2 {[%clk 00:02:49]} {[%emt 00:00:13]} Kg8 {[%clk 00:00:12]} {[%emt
00:00:01]} 33. Kf3 {[%clk 00:02:53]} Kf8 {[%clk 00:00:12]} {[%emt 00:00:05]} 34.
Rb7 {[%clk 00:02:53]} {[%emt 00:00:04]} Kg8 {[%clk 00:00:08]} {[%emt 00:00:09]}
35. Bb4 {[%clk 00:02:56]} {[%emt 00:00:01]} Bf6 {[%clk 00:00:12]} {[%emt
00:00:02]} 36. Bd6 {[%clk 00:02:58]} {[%emt 00:00:03]} Rc8 {[%clk 00:00:12]}
{[%emt 00:00:05]} 37. Rb8 {[%clk 00:03:01]} {[%emt 00:00:02]} Rxb8 {[%clk
00:00:16]} {[%emt 00:00:01]} 38. Bxb8 {[%clk 00:03:05]} Bd8 {[%clk 00:00:13]}
{[%emt 00:00:07]} 39. Bd6 {[%clk 00:03:06]} {[%emt 00:00:04]} f5 {[%clk
00:00:15]} {[%emt 00:00:04]} 40. e4 {[%clk 00:02:56]} {[%emt 00:00:15]} Kf7
{[%clk 00:00:11]} {[%emt 00:00:09]} 41. exf5 {[%clk 00:02:58]} {[%emt
00:00:02]} exf5 {[%clk 00:00:15]} {[%emt 00:00:01]} 42. d5 {[%clk 00:03:02]} h5
{[%clk 00:00:16]} {[%emt 00:00:05]} 43. Ke2 {[%clk 00:02:50]} {[%emt 00:00:17]}
Kg6 {[%clk 00:00:10]} {[%emt 00:00:11]} 44. Be5 {[%clk 00:02:52]} {[%emt
00:00:03]} h4 {[%clk 00:00:13]} {[%emt 00:00:03]} 45. Kd3 {[%clk 00:02:46]}
{[%emt 00:00:11]} h3 {[%clk 00:00:09]} {[%emt 00:00:08]} 46. gxh3 {[%clk
00:02:49]} {[%emt 00:00:02]} Kf7 {[%clk 00:00:10]} {[%emt 00:00:04]} 47. Kc4
{[%clk 00:02:52]} {[%emt 00:00:03]} Ke7 {[%clk 00:00:13]} {[%emt 00:00:02]} 48.
Kc5 {[%clk 00:02:53]} {[%emt 00:00:03]} Kd7 {[%clk 00:00:18]} 49. d6 {[%clk
00:02:57]} {[%emt 00:00:02]} Bh4 {[%clk 00:00:21]} {[%emt 00:00:02]} 50. Kd5
{[%clk 00:03:00]} {[%emt 00:00:01]} Bf2 {[%clk 00:00:24]} {[%emt 00:00:02]} 51.
Bg7 {[%clk 00:03:03]} {[%emt 00:00:02]} Bg1 {[%clk 00:00:25]} {[%emt 00:00:04]}
52. h4 {[%clk 00:03:07]} {[%emt 00:00:01]} Bxh2 {[%clk 00:00:29]} {[%emt
00:00:01]} 53. Be5 {[%clk 00:03:10]} {[%emt 00:00:01]} 1-0

[Event "MČR v rapid šachu družstev 2019"]
[Site "Teplice, Czech Republic"]
[Date "2019.09.15"]
[Round "3.3"]
[White "Strasil, Pavel"]
[Black "Polak, Tomas"]
[Result "1/2-1/2"]
[TimeControl "15 min. + 5s"]
[WhiteElo "2097"]
[BlackElo "2515"]

1. Nf3 {[%clk 00:15:08]} {[%emt 00:00:02]} Nf6 {[%clk 00:15:09]} {[%emt
00:00:02]} 2. c4 {[%clk 00:15:12]} {[%emt 00:00:01]} b6 {[%clk 00:15:11]}
{[%emt 00:00:03]} 3. g3 {[%clk 00:15:15]} {[%emt 00:00:02]} Bb7 {[%clk
00:15:15]} 4. Bg2 {[%clk 00:15:19]} {[%emt 00:00:02]} e6 {[%clk 00:15:18]}
{[%emt 00:00:02]} 5. O-O {[%clk 00:14:55]} {[%emt 00:00:29]} Be7 {[%clk
00:15:22]} {[%emt 00:00:01]} 6. b3 {[%clk 00:14:48]} {[%emt 00:00:12]} O-O
{[%clk 00:15:25]} {[%emt 00:00:02]} 7. Bb2 {[%clk 00:14:53]} d5 {[%clk
00:15:24]} {[%emt 00:00:06]} 8. cxd5 {[%clk 00:14:39]} {[%emt 00:00:19]} exd5
{[%clk 00:15:21]} {[%emt 00:00:08]} 9. d4 {[%clk 00:14:32]} {[%emt 00:00:12]}
Na6 {[%clk 00:15:19]} {[%emt 00:00:07]} 10. Nc3 {[%clk 00:14:19]} {[%emt
00:00:17]} c5 {[%clk 00:15:16]} {[%emt 00:00:08]} 11. dxc5 {[%clk 00:14:07]}
{[%emt 00:00:17]} bxc5 {[%clk 00:15:12]} {[%emt 00:00:09]} 12. e3 {[%clk
00:14:11]} {[%emt 00:00:02]} Qb6 {[%clk 00:14:46]} {[%emt 00:00:31]} 13. Qe2
{[%clk 00:14:06]} {[%emt 00:00:10]} Nc7 {[%clk 00:14:28]} {[%emt 00:00:22]} 14.
Na4 {[%clk 00:14:00]} {[%emt 00:00:12]} Qa5 {[%clk 00:13:36]} {[%emt 00:00:57]}
15. Rfd1 {[%clk 00:13:59]} {[%emt 00:00:05]} Ne6 {[%clk 00:13:29]} {[%emt
00:00:13]} 16. Qd2 {[%clk 00:13:10]} {[%emt 00:00:54]} Qxd2 {[%clk 00:13:12]}
{[%emt 00:00:22]} 17. Rxd2 {[%clk 00:13:11]} {[%emt 00:00:05]} Ne4 {[%clk
00:13:10]} {[%emt 00:00:07]} 18. Rc2 {[%clk 00:13:10]} {[%emt 00:00:05]} Rac8
{[%clk 00:13:01]} {[%emt 00:00:15]} 19. Rac1 {[%clk 00:13:07]} {[%emt
00:00:08]} Rfd8 {[%clk 00:12:54]} {[%emt 00:00:12]} 20. Nd2 {[%clk 00:11:41]}
{[%emt 00:01:31]} Nxd2 {[%clk 00:11:32]} {[%emt 00:01:27]} 21. Rxd2 {[%clk
00:11:43]} {[%emt 00:00:03]} Bc6 {[%clk 00:11:33]} {[%emt 00:00:04]} 22. Ba3
{[%clk 00:10:47]} {[%emt 00:01:00]} Bxa4 {[%clk 00:11:08]} {[%emt 00:00:31]} 23.
bxa4 {[%clk 00:10:50]} {[%emt 00:00:02]} d4 {[%clk 00:11:03]} {[%emt 00:00:09]}
24. Bh3 {[%clk 00:08:45]} {[%emt 00:02:10]} dxe3 {[%clk 00:08:39]} {[%emt
00:02:30]} 25. Rxd8+ {[%clk 00:08:44]} {[%emt 00:00:06]} Rxd8 {[%clk 00:07:00]}
{[%emt 00:01:44]} 26. Bxe6 {[%clk 00:06:50]} {[%emt 00:01:59]} exf2+ {[%clk
00:06:45]} {[%emt 00:00:20]} 27. Kxf2 {[%clk 00:06:48]} {[%emt 00:00:07]} fxe6
{[%clk 00:06:48]} {[%emt 00:00:02]} 28. Bxc5 {[%clk 00:06:04]} {[%emt
00:00:49]} Rc8 {[%clk 00:06:32]} {[%emt 00:00:20]} 29. Be3 {[%clk 00:05:54]}
{[%emt 00:00:15]} Rxc1 30. Bxc1 {[%clk 00:05:58]} Bd6 {[%clk 00:05:37]} {[%emt
00:00:59]} 31. h3 {[%clk 00:06:02]} {[%emt 00:00:02]} h5 {[%clk 00:05:26]}
{[%emt 00:00:16]} 32. g4 {[%clk 00:06:04]} {[%emt 00:00:03]} hxg4 {[%clk
00:05:30]} {[%emt 00:00:01]} 33. hxg4 {[%clk 00:06:08]} {[%emt 00:00:01]} Kf7
{[%clk 00:05:27]} {[%emt 00:00:07]} 34. Kf3 {[%clk 00:06:10]} {[%emt 00:00:03]}
Ke7 {[%clk 00:05:24]} {[%emt 00:00:08]} 35. Ke4 {[%clk 00:06:07]} {[%emt
00:00:08]} Kd7 {[%clk 00:05:24]} {[%emt 00:00:06]} 36. Be3 {[%clk 00:06:04]}
{[%emt 00:00:08]} a6 {[%clk 00:05:27]} {[%emt 00:00:02]} 37. Bd4 {[%clk
00:05:51]} {[%emt 00:00:18]} g6 {[%clk 00:05:30]} {[%emt 00:00:02]} 38. Be3
{[%clk 00:05:39]} {[%emt 00:00:16]} Kc6 {[%clk 00:05:28]} {[%emt 00:00:07]} 39.
Bd4 {[%clk 00:05:14]} {[%emt 00:00:30]} Bf8 {[%clk 00:05:23]} {[%emt 00:00:10]}
40. Be3 {[%clk 00:05:08]} {[%emt 00:00:11]} Bg7 {[%clk 00:05:25]} {[%emt
00:00:03]} 41. Ba7 {[%clk 00:05:08]} {[%emt 00:00:05]} Kd7 {[%clk 00:05:12]}
{[%emt 00:00:18]} 42. Bc5 {[%clk 00:05:09]} {[%emt 00:00:04]} Bc3 {[%clk
00:05:12]} {[%emt 00:00:04]} 43. Bb6 {[%clk 00:05:00]} {[%emt 00:00:14]} Ke7
{[%clk 00:05:14]} {[%emt 00:00:03]} 44. Be3 {[%clk 00:05:00]} {[%emt 00:00:05]}
Kf6 {[%clk 00:05:16]} {[%emt 00:00:04]} 45. Bc1 {[%clk 00:04:46]} {[%emt
00:00:19]} Be1 {[%clk 00:05:13]} {[%emt 00:00:09]} 46. Be3 {[%clk 00:04:44]}
{[%emt 00:00:07]} Bh4 {[%clk 00:05:15]} {[%emt 00:00:03]} 47. Bd2 {[%clk
00:04:45]} {[%emt 00:00:04]} Bg5 {[%emt 00:00:07]} 48. Bc3+ Ke7 {[%clk
00:05:17]} 49. Bb4+ {[%clk 00:04:53]} {[%emt 00:00:02]} Kd7 {[%clk 00:05:20]}
{[%emt 00:00:02]} 50. Bc5 {[%clk 00:04:55]} {[%emt 00:00:03]} Bc1 {[%clk
00:05:19]} {[%emt 00:00:06]} 51. Bd4 {[%clk 00:04:53]} {[%emt 00:00:07]} Kd6
{[%clk 00:05:20]} {[%emt 00:00:04]} 52. Ba7 {[%clk 00:04:54]} {[%emt 00:00:04]}
Bb2 {[%clk 00:05:19]} {[%emt 00:00:06]} 53. Bf2 {[%clk 00:04:55]} {[%emt
00:00:04]} Kc6 {[%clk 00:05:12]} {[%emt 00:00:12]} 54. Be3 {[%clk 00:04:51]}
{[%emt 00:00:09]} Kd6 {[%clk 00:05:11]} {[%emt 00:00:06]} 55. Bf2 {[%clk
00:04:55]} {[%emt 00:00:01]} Ba3 {[%clk 00:05:15]} {[%emt 00:00:01]} 56. Be3
{[%clk 00:04:49]} {[%emt 00:00:11]} Bb2 {[%clk 00:05:09]} {[%emt 00:00:11]} 57.
Bf2 {[%clk 00:04:52]} {[%emt 00:00:02]} Ke7 {[%clk 00:05:05]} {[%emt 00:00:09]}
58. Bh4+ {[%clk 00:04:50]} {[%emt 00:00:07]} Kf7 {[%clk 00:04:52]} {[%emt
00:00:18]} 59. Bg5 {[%clk 00:04:53]} {[%emt 00:00:03]} Bf6 {[%clk 00:04:52]}
{[%emt 00:00:04]} 60. Bd2 {[%clk 00:04:55]} {[%emt 00:00:02]} Bd8 {[%clk
00:04:53]} {[%emt 00:00:04]} 61. Bc3 {[%clk 00:04:53]} {[%emt 00:00:08]} Ke7
{[%clk 00:04:50]} {[%emt 00:00:08]} 62. Bd4 {[%clk 00:04:55]} {[%emt 00:00:03]}
Kd6 {[%clk 00:04:53]} {[%emt 00:00:02]} 63. Be3 {[%clk 00:04:59]} {[%emt
00:00:02]} Bf6 {[%clk 00:04:50]} {[%emt 00:00:08]} 64. Bf2 {[%clk 00:04:57]}
{[%emt 00:00:07]} Be5 {[%clk 00:04:50]} {[%emt 00:00:06]} 65. Bc5+ {[%clk
00:04:16]} {[%emt 00:00:46]} Kxc5 66. Kxe5 Kb4 {[%clk 00:04:57]} 67. Kxe6
{[%clk 00:04:24]} {[%emt 00:00:01]} Kxa4 {[%clk 00:04:51]} {[%emt 00:00:11]} 68.
Kf6 {[%clk 00:04:28]} Ka3 {[%clk 00:04:55]} {[%emt 00:00:02]} 69. Kxg6 {[%clk
00:04:32]} {[%emt 00:00:01]} Kxa2 {[%clk 00:04:59]} {[%emt 00:00:01]} 70. Kh7
{[%clk 00:04:34]} {[%emt 00:00:02]} a5 {[%clk 00:05:02]} {[%emt 00:00:03]} 71.
g5 {[%clk 00:04:38]} a4 {[%clk 00:05:06]} 72. g6 {[%clk 00:04:43]} {[%emt
00:00:02]} a3 {[%clk 00:05:10]} {[%emt 00:00:01]} 73. g7 {[%clk 00:04:47]} Kb2
{[%clk 00:05:11]} {[%emt 00:00:04]} 74. g8=Q {[%clk 00:04:50]} {[%emt
00:00:02]} a2 {[%clk 00:05:15]} {[%emt 00:00:01]} 75. Qb8+ {[%clk 00:04:52]}
{[%emt 00:00:03]} Kc2 {[%clk 00:05:14]} {[%emt 00:00:05]} 76. Qc7+ {[%clk
00:04:56]} {[%emt 00:00:02]} Kb2 {[%clk 00:05:17]} {[%emt 00:00:01]} 77. Qe5+
{[%clk 00:04:58]} {[%emt 00:00:03]} Kb1 {[%clk 00:05:21]} {[%emt 00:00:02]} 78.
Qe1+ {[%clk 00:04:54]} {[%emt 00:00:09]} Kb2 {[%clk 00:05:25]} {[%emt
00:00:01]} 79. Qd2+ {[%clk 00:04:58]} Kb1 {[%clk 00:05:28]} {[%emt 00:00:02]}
80. Qxa2+ {[%clk 00:04:58]} {[%emt 00:00:05]} 1/2-1/2